[Event "EYCC Girls-U14 2019"]
[Site "Bratislava"]
[Date "2019.08.10"]
[Round "9.5"]
[White "Nadzamova, Viktoria"]
[Black "Tarasenka, Aliaksandra"]
[Result "0-1"]
[ECO "B52"]
[WhiteElo "1854"]
[BlackElo "2231"]
[Annotator "NA"]
[PlyCount "54"]
[EventDate "2019.08.02"]
[EventType "swiss"]
[EventCountry "SVK"]
[SourceTitle "playchess.com"]
[Source "ChessBase"]
[SourceQuality "1"]
[TimeControl "40/5400+30:1800+30"]

1. e4 {[%emt 0:00:00]} c5 {[%emt 0:00:00]} 2. Nf3 {[%emt 0:00:00]} d6 {[%emt 0:00:02]} 3. Bb5+ {[%emt 0:00:00]} Bd7 {[%emt 0:00:21]} 4. Bxd7+ {[%emt 0:00:00]} Qxd7 {[%emt 0:00:14]} 5. O-O {[%emt 0:00:21]} Nc6 {[%emt 0:00:24]} 6. c3 {[%emt 0:00:38]} Nf6 {[%emt 0:00:41]} 7. Re1 {[%emt 0:00:19]} e6 {[%emt 0:01:24]} 8. d4 {[%emt 0:00:46]} cxd4 {[%emt 0:00:30]} 9. cxd4 {[%emt 0:00:07]} d5 {[%emt 0:00:48]} 10. e5 {[%emt 0:02:10]} Ng8 {[%emt 0:00:51]} 11. Nc3 {[%emt 0:01:39]} Nge7 {[%emt 0:01:39]} 12. Nh4 {[%emt 0:06:43]} Rc8 {[%emt 0:06:56]} 13. Be3 {[%emt 0:08:05]} Ng6 {[%emt 0:05:37]} 14. Nxg6 {[%emt 0:02:34]} hxg6 {[%emt 0:00:33]} 15. Bg5 {[%emt 0:05:34]} Be7 {[%emt 0:07:28]} 16. Bxe7 {[%emt 0:01:31]} Nxe7 {[%emt 0:01:27]} 17. Rc1 {[%emt 0:02:16]} Nf5 {[%emt 0:07:26]} 18. Nb5 {[%emt 0:06:07]} Rxc1 {[%emt 0:08:35]} 19. Qxc1 {[%emt 0:02:17]} O-O {[%emt 0:02:26]} 20. g4 {[%emt 0:22:10]} Nh4 {[%emt 0:07:38]} 21. Re3 {[%emt 0:04:32]} Qxb5 {[%emt 0:03:49]} 22. Rh3 {[%emt 0:00:14]} g5 {[%emt 0:01:18]} 23. Qxg5 {[%emt 0:01:59]} Ng6 {[%emt 0:02:10]} 24. Qh5 {[%emt 0:03:57]} Rc8 {[%emt 0:03:09]} 25. Qh7+ {[%emt 0:01:08]} Kf8 {[%emt 0:00:09]} 26. Rf3 {[%emt 0:02:00]} Qe2 {[%emt 0:04:14]} 27. Kg2 {[%emt 0:01:24]} Rc1 {[%emt 0:00:51]} 0-1

[Event "EYCC Girls-U14 2019"]
[Site "Bratislava"]
[Date "2019.08.10"]
[Round "9.6"]
[White "Kozachenko, Maria"]
[Black "Roebers, Eline"]
[Result "0-1"]
[ECO "B47"]
[WhiteElo "1865"]
[BlackElo "2069"]
[Annotator "NA"]
[PlyCount "46"]
[EventDate "2019.08.02"]
[EventType "swiss"]
[EventCountry "SVK"]
[SourceTitle "playchess.com"]
[Source "ChessBase"]
[SourceQuality "1"]
[TimeControl "40/5400+30:1800+30"]

1. e4 {[%emt 0:00:00]} c5 {[%emt 0:00:00]} 2. Nf3 {[%emt 0:00:00]} e6 {[%emt 0:00:00]} 3. d4 {[%emt 0:00:00]} cxd4 {[%emt 0:00:00]} 4. Nxd4 {[%emt 0:00:02]} Nc6 {[%emt 0:00:04]} 5. Nc3 {[%emt 0:01:06]} Qc7 {[%emt 0:00:23]} 6. Nxc6 {[%emt 0:01:16]} Qxc6 {[%emt 0:03:11]} 7. Bd3 {[%emt 0:03:34]} a6 {[%emt 0:08:35]} 8. a4 {[%emt 0:03:19]} b6 {[%emt 0:04:09]} 9. Qe2 {[%emt 0:04:32]} Bb7 {[%emt 0:04:18]} 10. Bd2 {[%emt 0:03:05]} Bc5 {[%emt 0:03:09]} 11. Nd5 {[%emt 0:04:25]} Ne7 {[%emt 0:08:53]} 12. Ne3 {[%emt 0:05:06]} O-O {[%emt 0:05:07]} 13. Bc3 {[%emt 0:05:20]} f6 {[%emt 0:08:46]} 14. Ng4 {[%emt 0:12:27]} d5 {[%emt 0:14:40]} 15. f3 {[%emt 0:05:33]} Ng6 {[%emt 0:05:59]} 16. exd5 {[%emt 0:05:38]} exd5 {[%emt 0:00:18]} 17. Bxg6 {[%emt 0:01:23]} hxg6 {[%emt 0:00:52]} 18. O-O-O {[%emt 0:02:10]} Qxa4 {[%emt 0:07:08]} 19. Qe6+ {[%emt 0:07:27]} Kh7 {[%emt 0:05:09]} 20. b3 {[%emt 0:07:55]} Qf4+ {[%emt 0:06:00]} 21. Bd2 {[%emt 0:03:54]} Qd4 {[%emt 0:04:10]} 22. c3 {[%emt 0:03:25]} Qd3 {[%emt 0:02:11]} 23. Rhe1 {[%emt 0:06:02]} Ba3# {[%emt 0:00:06]} 0-1

[Event "EYCC Girls-U14 2019"]
[Site "Bratislava"]
[Date "2019.08.10"]
[Round "9.7"]
[White "Zabrzanska, Weronika"]
[Black "Mironenko, Galina"]
[Result "0-1"]
[ECO "C01"]
[WhiteElo "1770"]
[BlackElo "1995"]
[Annotator "NA"]
[PlyCount "94"]
[EventDate "2019.08.02"]
[EventType "swiss"]
[EventCountry "SVK"]
[SourceTitle "playchess.com"]
[Source "ChessBase"]
[SourceQuality "1"]
[TimeControl "40/5400+30:1800+30"]

1. e4 {[%emt 0:00:00]} e6 {[%emt 0:00:00]} 2. d4 {[%emt 0:00:00]} d5 {[%emt 0:00:00]} 3. exd5 {[%emt 0:00:00]} exd5 {[%emt 0:00:11]} 4. Nf3 {[%emt 0:00:00]} Nf6 {[%emt 0:02:02]} 5. Bd3 {[%emt 0:00:14]} Be7 {[%emt 0:09:07]} 6. O-O {[%emt 0:00:53]} Nc6 {[%emt 0:02:40]} 7. c3 {[%emt 0:03:30]} Bg4 {[%emt 0:01:54]} 8. h3 {[%emt 0:03:09]} Bh5 {[%emt 0:02:47]} 9. Bf4 {[%emt 0:03:28]} Qd7 {[%emt 0:04:54]} 10. Nbd2 {[%emt 0:05:18]} O-O-O {[%emt 0:14:15]} 11. b4 {[%emt 0:00:12]} g5 {[%emt 0:05:21]} 12. Qc2 {[%emt 0:07:41]} Kb8 {[%emt 0:06:56]} 13. Bf5 {[%emt 0:10:46]} Bg6 {[%emt 0:02:36]} 14. Bxg6 {[%emt 0:01:10]} gxf4 {[%emt 0:01:57]} 15. Bf5 {[%emt 0:01:32]} Qd6 {[%emt 0:03:50]} 16. a4 {[%emt 0:05:01]} Rdg8 {[%emt 0:04:47]} 17. Kh1 {[%emt 0:03:42]} Rg7 {[%emt 0:00:47]} 18. a5 {[%emt 0:01:38]} h5 {[%emt 0:04:34]} 19. b5 {[%emt 0:01:52]} Nd8 {[%emt 0:01:14]} 20. c4 {[%emt 0:12:41]} dxc4 {[%emt 0:06:22]} 21. Nxc4 {[%emt 0:00:21]} Qd5 {[%emt 0:00:20]} 22. b6 {[%emt 0:05:48]} Nc6 {[%emt 0:06:01]} 23. bxc7+ {[%emt 0:08:03]} Kxc7 {[%emt 0:00:15]} 24. Qe2 {[%emt 0:05:23]} Qxf5 {[%emt 0:01:44]} 25. Nce5 {[%emt 0:01:53]} Qe4 {[%emt 0:02:26]} 26. Qb2 {[%emt 0:01:50]} Nb4 {[%emt 0:06:45]} 27. Rfe1 {[%emt 0:03:41]} Qd5 {[%emt 0:03:53]} 28. a6 {[%emt 0:09:02]} b6 {[%emt 0:02:49]} 29. Qc3+ {[%emt 0:01:41]} Kb8 {[%emt 0:01:00]} 30. Nd3 {[%emt 0:01:12]} Qc6 {[%emt 0:02:54]} 31. Qd2 {[%emt 0:01:30]} Nbd5 {[%emt 0:00:33]} 32. Rac1 {[%emt 0:00:51]} Qd6 {[%emt 0:00:23]} 33. Nde5 {[%emt 0:00:20]} Nb4 {[%emt 0:00:35]} 34. Rc4 {[%emt 0:01:01]} Nfd5 {[%emt 0:00:27]} 35. Rb1 {[%emt 0:00:43]} f6 {[%emt 0:00:31]} 36. Nd3 {[%emt 0:01:16]} Nxd3 {[%emt 0:00:27]} 37. Qxd3 {[%emt 0:00:02]} Rhg8 {[%emt 0:00:25]} 38. Nh4 {[%emt 0:00:31]} Qd7 {[%emt 0:00:25]} 39. Rbc1 {[%emt 0:00:42]} Rg5 {[%emt 0:00:34]} 40. Qf3 {[%emt 0:00:00]} Bd6 {[%emt 0:00:00]} 41. Rc6 {[%emt 0:06:54]} Bc5 {[%emt 0:07:28]} 42. R6xc5 {[%emt 0:03:25]} bxc5 {[%emt 0:00:37]} 43. Rb1+ {[%emt 0:00:06]} Ka8 {[%emt 0:01:01]} 44. Qb3 {[%emt 0:01:34]} c4 {[%emt 0:03:18]} 45. Qf3 {[%emt 0:03:05]} c3 {[%emt 0:01:13]} 46. Rc1 {[%emt 0:03:24]} Qc6 {[%emt 0:00:35]} 47. Qd1 {[%emt 0:04:03]} Qxa6 {[%emt 0:03:10]} 0-1

[Event "EYCC Girls-U14 2019"]
[Site "Bratislava"]
[Date "2019.08.10"]
[Round "9.8"]
[White "Lomaia, Diana"]
[Black "Pipiras, Filipa Fortuna"]
[Result "1/2-1/2"]
[ECO "E04"]
[WhiteElo "1807"]
[BlackElo "1980"]
[Annotator "NA"]
[PlyCount "114"]
[EventDate "2019.08.02"]
[EventType "swiss"]
[EventCountry "SVK"]
[SourceTitle "playchess.com"]
[Source "ChessBase"]
[SourceQuality "1"]
[TimeControl "40/5400+30:1800+30"]

1. d4 {[%emt 0:00:00]} d5 {[%emt 0:00:00]} 2. c4 {[%emt 0:00:00]} e6 {[%emt 0:00:14]} 3. Nf3 {[%emt 0:00:00]} Nf6 {[%emt 0:00:26]} 4. g3 {[%emt 0:00:16]} dxc4 {[%emt 0:01:07]} 5. Bg2 {[%emt 0:00:50]} Nc6 {[%emt 0:01:21]} 6. O-O {[%emt 0:00:55]} a6 {[%emt 0:01:44]} 7. Nc3 {[%emt 0:02:04]} Rb8 {[%emt 0:02:55]} 8. e4 {[%emt 0:02:25]} Be7 {[%emt 0:02:08]} 9. Bf4 {[%emt 0:06:44]} O-O {[%emt 0:04:31]} 10. Qe2 {[%emt 0:12:30]} b5 {[%emt 0:07:57]} 11. Rad1 {[%emt 0:01:25]} Nb4 {[%emt 0:07:38]} 12. Ne5 {[%emt 0:02:14]} Bb7 {[%emt 0:02:31]} 13. d5 {[%emt 0:11:57]} exd5 {[%emt 0:02:00]} 14. a3 {[%emt 0:08:48]} Nc6 {[%emt 0:10:50]} 15. Nxc6 {[%emt 0:03:00]} Bxc6 {[%emt 0:00:11]} 16. e5 {[%emt 0:00:41]} Nd7 {[%emt 0:04:00]} 17. Nxd5 {[%emt 0:01:29]} Bxd5 {[%emt 0:02:21]} 18. Bxd5 {[%emt 0:00:27]} Rb6 {[%emt 0:03:34]} 19. Be3 {[%emt 0:07:30]} c5 {[%emt 0:02:00]} 20. Qg4 {[%emt 0:04:09]} Kh8 {[%emt 0:05:35]} 21. Bf3 {[%emt 0:04:29]} Re6 {[%emt 0:02:58]} 22. Qh3 {[%emt 0:07:52]} Qc8 {[%emt 0:04:17]} 23. Be4 {[%emt 0:07:20]} g6 {[%emt 0:05:04]} 24. f4 {[%emt 0:00:40]} f5 {[%emt 0:01:35]} 25. Bd5 {[%emt 0:05:25]} Rb6 {[%emt 0:01:12]} 26. Rf2 {[%emt 0:02:46]} Rd8 {[%emt 0:01:36]} 27. Rfd2 {[%emt 0:00:04]} Nf8 {[%emt 0:00:44]} 28. Qg2 {[%emt 0:01:16]} Rb8 {[%emt 0:07:01]} 29. Qf2 {[%emt 0:00:36]} Qc7 {[%emt 0:02:01]} 30. Qf3 {[%emt 0:03:06]} Nd7 {[%emt 0:01:15]} 31. Be6 {[%emt 0:02:07]} Nb6 {[%emt 0:01:24]} 32. g4 {[%emt 0:00:30]} fxg4 {[%emt 0:00:53]} 33. Bxg4 {[%emt 0:01:38]} Rxd2 {[%emt 0:01:09]} 34. Rxd2 {[%emt 0:00:04]} Rd8 {[%emt 0:00:40]} 35. Qd1 {[%emt 0:00:36]} Na4 {[%emt 0:01:28]} 36. Qc2 {[%emt 0:00:32]} Rxd2 {[%emt 0:00:36]} 37. Qxd2 {[%emt 0:00:46]} Qd8 {[%emt 0:00:26]} 38. Qxd8+ {[%emt 0:00:32]} Bxd8 {[%emt 0:00:07]} 39. Bc1 {[%emt 0:00:09]} b4 {[%emt 0:04:38]} 40. Be6 {[%emt 0:00:00]} c3 {[%emt 0:00:00]} 41. bxc3 {[%emt 0:03:15]} Nxc3 {[%emt 0:04:47]} 42. Kf2 {[%emt 0:02:19]} a5 {[%emt 0:01:18]} 43. Ke3 {[%emt 0:03:58]} g5 {[%emt 0:08:30]} 44. Kd3 {[%emt 0:04:58]} gxf4 {[%emt 0:03:36]} 45. Bxf4 {[%emt 0:03:07]} Kg7 {[%emt 0:00:13]} 46. Be3 {[%emt 0:04:12]} Be7 {[%emt 0:03:33]} 47. axb4 {[%emt 0:00:31]} cxb4 {[%emt 0:00:17]} 48. Bd4 {[%emt 0:04:36]} Nb5 {[%emt 0:00:36]} 49. Bb6 {[%emt 0:00:28]} a4 {[%emt 0:00:44]} 50. Bd7 {[%emt 0:01:08]} Nc3 {[%emt 0:00:22]} 51. Bd4 {[%emt 0:00:21]} a3 {[%emt 0:01:12]} 52. Bxc3 {[%emt 0:01:50]} bxc3 {[%emt 0:00:07]} 53. Kxc3 {[%emt 0:00:25]} Bb4+ {[%emt 0:01:07]} 54. Kb3 {[%emt 0:00:05]} Kf7 {[%emt 0:00:32]} 55. Bg4 {[%emt 0:00:28]} Bc5 {[%emt 0:00:17]} 56. h3 {[%emt 0:00:17]} Ke7 {[%emt 0:00:08]} 57. h4 {[%emt 0:00:44]} h6 {[%emt 0:00:08]} 1/2-1/2

[Event "EYCC Girls-U14 2019"]
[Site "Bratislava"]
[Date "2019.08.10"]
[Round "9.9"]
[White "Bondareva, Daria"]
[Black "Katter, Katharina"]
[Result "1-0"]
[ECO "C07"]
[WhiteElo "1998"]
[BlackElo "1824"]
[Annotator "NA"]
[PlyCount "63"]
[EventDate "2019.08.02"]
[EventType "swiss"]
[EventCountry "SVK"]
[SourceTitle "playchess.com"]
[Source "ChessBase"]
[SourceQuality "1"]
[TimeControl "40/5400+30:1800+30"]

1. e4 {[%emt 0:00:00]} e6 {[%emt 0:00:00]} 2. d4 {[%emt 0:00:08]} d5 {[%emt 0:00:00]} 3. Nd2 {[%emt 0:00:18]} c5 {[%emt 0:00:11]} 4. dxc5 {[%emt 0:00:12]} Bxc5 {[%emt 0:00:20]} 5. Bd3 {[%emt 0:00:14]} Nc6 {[%emt 0:02:08]} 6. Ngf3 {[%emt 0:01:17]} Nf6 {[%emt 0:02:30]} 7. Qe2 {[%emt 0:00:35]} O-O {[%emt 0:08:36]} 8. c3 {[%emt 0:01:25]} Qe7 {[%emt 0:08:12]} 9. O-O {[%emt 0:03:38]} Rd8 {[%emt 0:01:53]} 10. e5 {[%emt 0:02:52]} Ne8 {[%emt 0:04:41]} 11. Nb3 {[%emt 0:00:59]} Bb6 {[%emt 0:02:15]} 12. Nbd4 {[%emt 0:11:15]} Nxd4 {[%emt 0:08:23]} 13. Nxd4 {[%emt 0:01:11]} f6 {[%emt 0:03:17]} 14. f4 {[%emt 0:04:26]} f5 {[%emt 0:04:08]} 15. Be3 {[%emt 0:00:39]} Nc7 {[%emt 0:06:35]} 16. a4 {[%emt 0:05:55]} Bd7 {[%emt 0:03:26]} 17. Kh1 {[%emt 0:04:46]} Kh8 {[%emt 0:02:13]} 18. Rf3 {[%emt 0:06:47]} Qe8 {[%emt 0:06:04]} 19. b3 {[%emt 0:04:52]} Qh5 {[%emt 0:01:52]} 20. Qf2 {[%emt 0:01:20]} Rac8 {[%emt 0:04:21]} 21. Rh3 {[%emt 0:02:17]} Qf7 {[%emt 0:02:09]} 22. Qe1 {[%emt 0:10:28]} Rf8 {[%emt 0:08:57]} 23. a5 {[%emt 0:08:27]} Bxd4 {[%emt 0:06:46]} 24. Bxd4 {[%emt 0:00:03]} a6 {[%emt 0:00:11]} 25. Bc5 {[%emt 0:02:18]} Rfe8 {[%emt 0:00:32]} 26. Qh4 {[%emt 0:02:59]} Qg6 {[%emt 0:01:39]} 27. Be2 {[%emt 0:01:37]} Red8 {[%emt 0:02:40]} 28. Be7 {[%emt 0:01:54]} Qh6 {[%emt 0:07:50]} 29. Bxd8 {[%emt 0:00:44]} Qxh4 {[%emt 0:00:18]} 30. Bxh4 {[%emt 0:00:03]} Nb5 {[%emt 0:00:26]} 31. Bxb5 {[%emt 0:00:32]} Bxb5 {[%emt 0:00:17]} 32. c4 {[%emt 0:01:51]} 1-0

[Event "EYCC Girls-U14 2019"]
[Site "Bratislava"]
[Date "2019.08.10"]
[Round "9.10"]
[White "Bashylina, Luisa"]
[Black "Ruseva, Eva"]
[Result "1/2-1/2"]
[ECO "C02"]
[WhiteElo "1989"]
[BlackElo "1804"]
[Annotator "NA"]
[PlyCount "57"]
[EventDate "2019.08.02"]
[EventType "swiss"]
[EventCountry "SVK"]
[SourceTitle "playchess.com"]
[Source "ChessBase"]
[SourceQuality "1"]
[TimeControl "40/5400+30:1800+30"]

1. e4 {[%emt 0:00:00]} e6 {[%emt 0:00:00]} 2. d4 {[%emt 0:00:00]} d5 {[%emt 0:00:00]} 3. e5 {[%emt 0:00:00]} c5 {[%emt 0:00:00]} 4. c3 {[%emt 0:00:00]} Nc6 {[%emt 0:00:00]} 5. Nf3 {[%emt 0:00:00]} Bd7 {[%emt 0:00:00]} 6. Be2 {[%emt 0:00:00]} f6 {[%emt 0:00:36]} 7. O-O {[%emt 0:01:14]} fxe5 {[%emt 0:01:11]} 8. Nxe5 {[%emt 0:00:25]} Nxe5 {[%emt 0:00:42]} 9. dxe5 {[%emt 0:00:06]} Qc7 {[%emt 0:00:44]} 10. Bf4 {[%emt 0:01:10]} O-O-O {[%emt 0:02:08]} 11. Nd2 {[%emt 0:04:06]} Nh6 {[%emt 0:02:52]} 12. Nf3 {[%emt 0:05:35]} Be7 {[%emt 0:04:51]} 13. b4 {[%emt 0:03:04]} Rdf8 {[%emt 0:01:47]} 14. Be3 {[%emt 0:04:30]} Ng4 {[%emt 0:11:36]} 15. Bxc5 {[%emt 0:01:06]} Bxc5 {[%emt 0:00:44]} 16. bxc5 {[%emt 0:00:05]} Nxe5 {[%emt 0:00:41]} 17. Nxe5 {[%emt 0:01:06]} Qxe5 {[%emt 0:00:07]} 18. Qd2 {[%emt 0:16:07]} Rd8 {[%emt 0:06:47]} 19. Rfe1 {[%emt 0:06:34]} Qf6 {[%emt 0:03:26]} 20. Bf3 {[%emt 0:03:40]} Rhe8 {[%emt 0:08:28]} 21. c4 {[%emt 0:01:39]} Bc6 {[%emt 0:02:25]} 22. Qb4 {[%emt 0:01:37]} e5 {[%emt 0:02:56]} 23. Rab1 {[%emt 0:05:17]} dxc4 {[%emt 0:02:36]} 24. Bxc6 {[%emt 0:01:41]} Qxc6 {[%emt 0:01:36]} 25. Qxc4 {[%emt 0:00:22]} Rd5 {[%emt 0:04:29]} 26. Qg4+ {[%emt 0:01:44]} Qd7 {[%emt 0:00:09]} 27. Qb4 {[%emt 0:01:23]} Qc6 {[%emt 0:01:45]} 28. Rec1 {[%emt 0:03:56]} Kb8 {[%emt 0:02:03]} 29. h3 {[%emt 0:06:46]} 1/2-1/2

[Event "EYCC Girls-U14 2019"]
[Site "Bratislava"]
[Date "2019.08.10"]
[Round "9.11"]
[White "Mihelic, Vesna"]
[Black "Zhou, Lulu"]
[Result "1/2-1/2"]
[ECO "C50"]
[WhiteElo "1844"]
[BlackElo "1944"]
[Annotator "NA"]
[PlyCount "51"]
[EventDate "2019.08.02"]
[EventType "swiss"]
[EventCountry "SVK"]
[SourceTitle "playchess.com"]
[Source "ChessBase"]
[SourceQuality "1"]
[TimeControl "40/5400+30:1800+30"]

1. e4 {[%emt 0:00:00]} e5 {[%emt 0:00:00]} 2. Nf3 {[%emt 0:00:00]} Nc6 {[%emt 0:00:00]} 3. Bc4 {[%emt 0:00:00]} Bc5 {[%emt 0:00:00]} 4. d3 {[%emt 0:00:00]} Nf6 {[%emt 0:00:00]} 5. Nc3 {[%emt 0:00:00]} a6 {[%emt 0:00:00]} 6. Be3 {[%emt 0:00:12]} Bxe3 {[%emt 0:00:08]} 7. fxe3 {[%emt 0:00:07]} d6 {[%emt 0:00:07]} 8. O-O {[%emt 0:00:48]} Na5 {[%emt 0:00:26]} 9. Bb3 {[%emt 0:00:23]} Nxb3 {[%emt 0:00:08]} 10. axb3 {[%emt 0:00:07]} c6 {[%emt 0:01:21]} 11. Qe1 {[%emt 0:07:25]} O-O {[%emt 0:00:13]} 12. Qg3 {[%emt 0:17:51]} Ng4 {[%emt 0:00:55]} 13. Rae1 {[%emt 0:01:03]} b5 {[%emt 0:00:07]} 14. Nh4 {[%emt 0:03:16]} Nh6 {[%emt 0:11:28]} 15. Nf5 {[%emt 0:01:23]} Nxf5 {[%emt 0:02:19]} 16. exf5 {[%emt 0:00:02]} f6 {[%emt 0:00:09]} 17. Qh4 {[%emt 0:11:11]} d5 {[%emt 0:11:13]} 18. e4 {[%emt 0:08:30]} Rf7 {[%emt 0:08:43]} 19. Rf3 {[%emt 0:02:51]} d4 {[%emt 0:11:53]} 20. Ne2 {[%emt 0:01:29]} Rc7 {[%emt 0:02:28]} 21. Ng3 {[%emt 0:02:29]} c5 {[%emt 0:07:04]} 22. Nh5 {[%emt 0:02:17]} Raa7 {[%emt 0:01:43]} 23. Rg3 {[%emt 0:13:19]} Kf8 {[%emt 0:05:44]} 24. Rf1 {[%emt 0:11:00]} g5 25. Rg4 c4 26. Rg3 1/2-1/2

[Event "EYCC Girls-U14 2019"]
[Site "Bratislava"]
[Date "2019.08.10"]
[Round "9.12"]
[White "Reuter, Elisa"]
[Black "Zavivaeva, Emilia"]
[Result "1/2-1/2"]
[ECO "B33"]
[WhiteElo "1930"]
[BlackElo "1740"]
[Annotator "NA"]
[PlyCount "86"]
[EventDate "2019.08.02"]
[EventType "swiss"]
[EventCountry "SVK"]
[SourceTitle "playchess.com"]
[Source "ChessBase"]
[SourceQuality "1"]
[TimeControl "40/5400+30:1800+30"]

1. e4 {[%emt 0:00:00]} c5 {[%emt 0:00:00]} 2. Nf3 {[%emt 0:00:00]} Nc6 {[%emt 0:00:00]} 3. d4 {[%emt 0:00:00]} cxd4 {[%emt 0:01:07]} 4. Nxd4 {[%emt 0:00:00]} Nf6 {[%emt 0:00:14]} 5. Nc3 {[%emt 0:00:00]} e5 {[%emt 0:00:25]} 6. Ndb5 {[%emt 0:00:00]} d6 {[%emt 0:00:24]} 7. Bg5 {[%emt 0:00:21]} a6 {[%emt 0:00:08]} 8. Na3 {[%emt 0:00:05]} b5 {[%emt 0:00:11]} 9. Bxf6 {[%emt 0:00:04]} gxf6 {[%emt 0:00:08]} 10. Nd5 {[%emt 0:00:03]} f5 {[%emt 0:04:04]} 11. g3 {[%emt 0:07:38]} fxe4 {[%emt 0:03:32]} 12. Bg2 {[%emt 0:00:15]} Bf5 {[%emt 0:09:58]} 13. f3 {[%emt 0:12:30]} e3 {[%emt 0:06:14]} 14. Nxe3 {[%emt 0:14:51]} Be6 {[%emt 0:07:23]} 15. f4 {[%emt 0:14:13]} Rc8 {[%emt 0:01:48]} 16. Nd5 {[%emt 0:12:10]} Bg7 {[%emt 0:02:46]} 17. c3 {[%emt 0:02:03]} O-O {[%emt 0:05:35]} 18. O-O {[%emt 0:13:54]} b4 {[%emt 0:06:47]} 19. Nc4 {[%emt 0:12:09]} bxc3 {[%emt 0:01:24]} 20. bxc3 {[%emt 0:00:16]} Ne7 {[%emt 0:07:00]} 21. Nxe7+ {[%emt 0:02:50]} Qxe7 {[%emt 0:00:12]} 22. Qxd6 {[%emt 0:02:35]} Qa7+ {[%emt 0:00:43]} 23. Qb6 {[%emt 0:00:11]} Qxb6+ {[%emt 0:00:24]} 24. Nxb6 {[%emt 0:00:04]} Rxc3 {[%emt 0:01:38]} 25. f5 {[%emt 0:00:22]} Bc4 {[%emt 0:02:36]} 26. Nxc4 {[%emt 0:00:06]} Rxc4 {[%emt 0:00:10]} 27. Bd5 {[%emt 0:01:34]} Rd4 {[%emt 0:02:45]} 28. Rad1 {[%emt 0:02:06]} Rd8 {[%emt 0:00:55]} 29. Bb3 {[%emt 0:00:12]} Bh6 {[%emt 0:03:18]} 30. Kg2 {[%emt 0:01:04]} a5 {[%emt 0:01:19]} 31. a4 {[%emt 0:01:53]} R8d6 {[%emt 0:02:50]} 32. h3 {[%emt 0:01:06]} Kg7 {[%emt 0:03:36]} 33. g4 {[%emt 0:00:41]} Kf6 {[%emt 0:00:52]} 34. Bc2 {[%emt 0:00:44]} Rxd1 {[%emt 0:08:10]} 35. Rxd1 {[%emt 0:00:03]} Rxd1 {[%emt 0:00:06]} 36. Bxd1 {[%emt 0:00:03]} e4 {[%emt 0:01:48]} 37. Bb3 {[%emt 0:00:01]} Bf4 {[%emt 0:02:12]} 38. Bd5 {[%emt 0:00:59]} Ke5 {[%emt 0:03:30]} 39. Bxf7 {[%emt 0:00:15]} Kd4 {[%emt 0:02:00]} 40. Be8 {[%emt 0:00:00]} Ke5 {[%emt 0:00:00]} 41. Bc6 {[%emt 0:02:57]} Bg5 {[%emt 0:05:03]} 42. Kg3 {[%emt 0:00:59]} Bf4+ {[%emt 0:04:57]} 43. Kg2 {[%emt 0:00:03]} e3 1/2-1/2

[Event "EYCC Girls-U14 2019"]
[Site "Bratislava"]
[Date "2019.08.10"]
[Round "9.13"]
[White "Sovina, Maria"]
[Black "Mroz, Lena"]
[Result "1-0"]
[ECO "D31"]
[WhiteElo "1757"]
[BlackElo "1587"]
[Annotator "NA"]
[PlyCount "99"]
[EventDate "2019.08.02"]
[EventType "swiss"]
[EventCountry "SVK"]
[SourceTitle "playchess.com"]
[Source "ChessBase"]
[SourceQuality "1"]
[TimeControl "40/5400+30:1800+30"]

1. d4 {[%emt 0:00:00]} d5 {[%emt 0:00:00]} 2. c4 {[%emt 0:00:00]} e6 {[%emt 0:00:00]} 3. Nc3 {[%emt 0:00:00]} c6 {[%emt 0:00:00]} 4. Nf3 {[%emt 0:00:00]} dxc4 {[%emt 0:00:38]} 5. e3 {[%emt 0:08:34]} b5 {[%emt 0:00:13]} 6. a4 {[%emt 0:01:44]} Bb4 {[%emt 0:00:24]} 7. Bd2 {[%emt 0:02:27]} Bxc3 {[%emt 0:00:54]} 8. Bxc3 {[%emt 0:00:54]} a5 {[%emt 0:03:57]} 9. axb5 {[%emt 0:01:12]} cxb5 {[%emt 0:00:18]} 10. b3 {[%emt 0:03:24]} Bb7 {[%emt 0:00:40]} 11. bxc4 {[%emt 0:01:28]} b4 {[%emt 0:00:31]} 12. Bb2 {[%emt 0:04:38]} Nf6 {[%emt 0:00:50]} 13. Bd3 {[%emt 0:01:38]} Nbd7 {[%emt 0:04:24]} 14. O-O {[%emt 0:04:15]} Be4 {[%emt 0:06:26]} 15. Bxe4 {[%emt 0:08:41]} Nxe4 {[%emt 0:01:24]} 16. Qd3 {[%emt 0:01:52]} Ndf6 {[%emt 0:01:31]} 17. Ne5 {[%emt 0:04:19]} O-O {[%emt 0:03:32]} 18. c5 {[%emt 0:03:48]} h6 {[%emt 0:08:06]} 19. Ra4 {[%emt 0:03:27]} Qc7 {[%emt 0:04:16]} 20. f3 {[%emt 0:02:08]} Ng5 {[%emt 0:00:51]} 21. Rfa1 {[%emt 0:06:11]} Ra7 {[%emt 0:03:17]} 22. Nc4 {[%emt 0:07:37]} Rfa8 {[%emt 0:06:51]} 23. Nb6 {[%emt 0:00:18]} Rd8 {[%emt 0:03:30]} 24. Rxa5 {[%emt 0:03:40]} Rxa5 {[%emt 0:01:18]} 25. Rxa5 {[%emt 0:00:01]} Nd7 {[%emt 0:02:01]} 26. Qb5 {[%emt 0:01:59]} Nf6 {[%emt 0:14:01]} 27. Qxb4 {[%emt 0:01:32]} Ngh7 {[%emt 0:10:36]} 28. Qa4 {[%emt 0:06:13]} Nd5 {[%emt 0:04:56]} 29. Nxd5 {[%emt 0:01:36]} exd5 {[%emt 0:00:22]} 30. Ra8 {[%emt 0:04:40]} Nf6 {[%emt 0:01:58]} 31. Bc3 {[%emt 0:01:53]} Qe7 {[%emt 0:02:08]} 32. Rxd8+ {[%emt 0:00:45]} Qxd8 {[%emt 0:00:02]} 33. c6 {[%emt 0:02:02]} Qe7 {[%emt 0:06:58]} 34. Bd2 {[%emt 0:02:04]} Ne8 {[%emt 0:01:52]} 35. Qa8 {[%emt 0:02:36]} Kh7 {[%emt 0:00:25]} 36. Qb7 {[%emt 0:00:39]} Qd6 {[%emt 0:05:21]} 37. Bb4 {[%emt 0:01:29]} Qe6 {[%emt 0:00:30]} 38. Kf2 {[%emt 0:00:50]} Qg6 {[%emt 0:00:49]} 39. h3 {[%emt 0:05:07]} h5 {[%emt 0:01:03]} 40. Qd7 {[%emt 0:00:00]} Qe6 {[%emt 0:00:00]} 41. Qxe6 {[%emt 0:07:22]} fxe6 {[%emt 0:01:52]} 42. e4 {[%emt 0:00:17]} Kg6 {[%emt 0:01:50]} 43. e5 {[%emt 0:00:34]} Kf7 {[%emt 0:02:55]} 44. Bd6 {[%emt 0:00:15]} Kg6 {[%emt 0:02:06]} 45. c7 {[%emt 0:00:18]} Nxc7 {[%emt 0:00:05]} 46. Bxc7 {[%emt 0:00:03]} Kf5 {[%emt 0:00:18]} 47. Ke3 {[%emt 0:00:38]} g6 {[%emt 0:01:10]} 48. Bd8 {[%emt 0:01:13]} g5 {[%emt 0:00:08]} 49. g4+ {[%emt 0:00:14]} Kg6 {[%emt 0:00:17]} 50. f4 {[%emt 0:00:25]} 1-0